bitfinex-derivatives/quotes_BTCF0:USTF0_20241208
["timestamp","ask_amount","ask_price","bid_price","bid_amount"]
[1733699157709,0.2870645,100210.0,100200.0,0.5054599]
[1733699158710,0.2870645,100210.0,100200.0,0.5094599]
[1733699160913,0.2870645,100210.0,100200.0,0.1486599]
[1733699161111,0.1940645,100210.0,100200.0,0.60498034]
[1733699161412,0.1940645,100210.0,100200.0,0.5427599]
[1733699168426,0.1491925,100210.0,100200.0,0.63828034]
[1733699168622,0.1491925,100210.0,100200.0,0.70058034]
[1733699169120,0.1491925,100210.0,100200.0,0.66780973]
[1733699169324,0.1491925,100210.0,100200.0,0.6050599]
[1733699169824,0.1491925,100210.0,100200.0,0.6040599]
[1733699170020,0.1491925,100210.0,100200.0,0.6070599]
[1733699170217,0.10762183,100210.0,100200.0,0.48441889]
[1733699170420,0.10762183,100210.0,100200.0,0.39281889]
[1733699170626,0.13792183,100210.0,100200.0,0.38981889]
[1733699170924,0.19932183,100210.0,100200.0,0.38381889]
[1733699171130,0.19932183,100210.0,100200.0,0.38681889]
[1733699172123,0.56012183,100210.0,100200.0,0.38681889]
[1733699172620,0.19932183,100210.0,100200.0,0.38681889]
[1733699173320,0.136572,100210.0,100200.0,0.38681889]
[1733699173927,0.2240615,100220.0,100210.0,0.044872]
[1733699174223,0.10761883,100220.0,100210.0,0.044872]
[1733699174628,0.10761883,100220.0,100210.0,0.14466741]
[1733699175024,0.46841883,100220.0,100210.0,0.14466741]
[1733699175226,0.10761883,100220.0,100210.0,0.14466741]
[1733699175622,0.044869,100220.0,100210.0,0.14466741]
[1733699176129,0.10761883,100220.0,100210.0,0.14466741]
[1733699176930,0.044869,100220.0,100210.0,0.14466741]
[1733699177432,0.10761883,100220.0,100210.0,0.14466741]
[1733699177940,0.044869,100220.0,100210.0,0.14466741]
[1733699178432,0.10761883,100220.0,100210.0,0.14466741]
[1733699179629,0.10761883,100220.0,100210.0,0.50546741]
[1733699180329,0.28619584,100220.0,100210.0,0.50546741]
[1733699181721,0.64699584,100220.0,100210.0,0.09979541]
[1733699181936,0.71099584,100220.0,100210.0,0.09979541]
[1733699182229,0.72099584,100220.0,100210.0,0.09979541]
[1733699185730,0.78374567,100220.0,100210.0,0.09979541]
[1733699188538,0.044872,100210.0,100200.0,0.23815943]
[1733699188728,0.37394138,100210.0,100200.0,0.23815943]
[1733699188935,0.28711422,100210.0,100200.0,0.69874489]
[1733699189137,0.4366938,100210.0,100200.0,0.79314489]
[1733699189640,0.4366938,100210.0,100200.0,0.79414489]
[1733699189839,0.4366938,100210.0,100200.0,0.83902089]
[1733699190039,0.32907197,100210.0,100200.0,0.90477072]
[1733699190239,0.14957958,100210.0,100200.0,1.20127086]
[1733699190736,0.21232941,100210.0,100200.0,0.96311187]
[1733699191136,0.21232941,100210.0,100200.0,1.26162113]
[1733699191440,0.19445158,100210.0,100200.0,1.50043345]
[1733699192034,0.19445158,100210.0,100200.0,1.73924204]
[1733699192637,0.25720141,100210.0,100200.0,1.73924204]
[1733699192841,0.25720141,100210.0,100200.0,1.37999207]
[1733699193036,0.25720141,100210.0,100200.0,1.08148281]
[1733699193037,0.4366938,100210.0,100200.0,1.08148281]
[1733699193340,0.4366938,100210.0,100200.0,0.72068281]
[1733699193539,0.4366938,100210.0,100200.0,0.65648281]
[1733699193730,0.4366938,100210.0,100200.0,0.41767049]
[1733699193936,0.4366938,100210.0,100200.0,0.34259449]
[1733699194138,0.35041422,100210.0,100200.0,0.34259449]
[1733699197430,0.71121422,100210.0,100200.0,0.34259449]
[1733699198643,0.35041422,100210.0,100200.0,0.34259449]
[1733699198939,0.71121422,100210.0,100200.0,0.52169272]
[1733699199146,0.71121422,100210.0,100200.0,0.28288413]
[1733699199446,0.71121422,100210.0,100200.0,0.18309867]
[1733699200045,0.53172183,100210.0,100200.0,0.18309867]
[1733699200347,0.54193941,100210.0,100200.0,0.18309867]
[1733699201644,0.61468924,100210.0,100200.0,0.18309867]
[1733699203946,0.61468924,100210.0,100200.0,0.00400044]
[1733699205651,0.04488,100190.0,100170.0,0.44424945]
[1733699205956,0.68059627,100180.0,100170.0,0.28039077]
[1733699206157,0.68059627,100180.0,100170.0,0.10129254]
[1733699206341,0.85989021,100180.0,100170.0,0.10129254]
[1733699206652,0.68051059,100180.0,100170.0,0.10129254]
[1733699207155,0.68051059,100180.0,100170.0,0.10829254]
[1733699207447,0.51012593,100180.0,100170.0,0.15318154]
[1733699207653,1.1925937,100190.0,100170.0,0.51248441]
[1733699207855,0.06274983,100180.0,100170.0,0.75508264]
[1733699208147,0.06274983,100180.0,100170.0,0.75808264]
[1733699208547,0.10763483,100180.0,100170.0,0.75808264]
[1733699209254,0.10763483,100180.0,100170.0,0.75108264]
[1733699209450,0.10763483,100180.0,100170.0,0.57898441]
[1733699209451,0.044885,100180.0,100170.0,0.57898441]
[1733699209649,0.19422551,100190.0,100180.0,0.044885]
[1733699209857,0.22697534,100190.0,100180.0,0.25568323]
[1733699210052,0.61775676,100190.0,100180.0,0.0317]
[1733699210353,0.044885,100180.0,100170.0,0.118386]
[1733699210551,0.17038466,100180.0,100170.0,0.118386]
[1733699210951,0.53118466,100180.0,100170.0,0.2112113]
[1733699211254,0.53118466,100180.0,100170.0,0.2082113]
[1733699211449,0.17038466,100180.0,100170.0,0.2082113]
[1733699211757,0.17038466,100180.0,100170.0,0.5690113]
[1733699211956,0.17038466,100180.0,100170.0,0.5720113]
[1733699212253,0.10763483,100180.0,100170.0,0.5720113]
[1733699212454,0.10763483,100180.0,100170.0,0.5790113]
[1733699214854,0.10763483,100180.0,100170.0,0.2182113]
[1733699215158,0.10763483,100180.0,100170.0,0.5790113]
[1733699217561,0.10763483,100180.0,100170.0,0.2182113]
[1733699217753,0.10763483,100180.0,100170.0,0.5790113]
[1733699220467,0.17038466,100180.0,100170.0,0.5790113]
[1733699223061,0.10763483,100180.0,100170.0,0.5790113]
[1733699229869,0.10763483,100180.0,100170.0,0.5750113]
[1733699230066,0.10763483,100180.0,100170.0,0.5730113]
[1733699232269,0.10763483,100180.0,100170.0,0.2122113]
[1733699232961,0.25696076,100180.0,100170.0,0.39130953]
[1733699233573,0.43600496,100180.0,100170.0,0.62961267]
[1733699233966,0.43600496,100180.0,100170.0,0.99041267]
[1733699234168,0.43600496,100180.0,100170.0,0.62961267]
[1733699234478,0.43600496,100180.0,100170.0,0.99041267]
[1733699234776,0.43600496,100180.0,100170.0,0.99103314]
[1733699237081,0.43600496,100180.0,100170.0,1.12056703]
[1733699238473,0.32837013,100180.0,100170.0,1.18331686]
[1733699238680,0.11971608,100180.0,100170.0,1.60256625]
[1733699238871,0.11971608,100180.0,100170.0,1.00405699]
[1733699239078,0.11971608,100180.0,100170.0,1.60260625]
[1733699239277,0.11971608,100180.0,100170.0,1.30405699]
[1733699239483,0.29904201,100190.0,100180.0,0.044885]
[1733699239686,0.26904201,100190.0,100180.0,0.79805051]
[1733699240283,0.11971608,100190.0,100180.0,0.89786585]
[1733699240581,0.11971608,100190.0,100180.0,1.1365909]
[1733699241085,0.12071608,100190.0,100180.0,1.13651723]
[1733699241284,0.12071608,100190.0,100180.0,1.49305835]
[1733699242382,0.11971608,100190.0,100180.0,1.49274956]
[1733699242583,0.11971608,100190.0,100180.0,1.49574956]
[1733699242983,0.11971608,100190.0,100180.0,1.49674956]
[1733699243885,0.11971608,100190.0,100180.0,1.43399973]
[1733699244087,0.58571504,100200.0,100190.0,0.04488]
[1733699244280,0.55571504,100200.0,100190.0,0.58454862]
[1733699244792,0.55571504,100200.0,100190.0,0.68436396]
[1733699245293,0.43619313,100200.0,100190.0,0.50549534]
[1733699245491,0.3734433,100200.0,100190.0,0.56824517]
[1733699245992,0.3734433,100200.0,100190.0,0.63054517]
[1733699246287,0.3744433,100200.0,100190.0,0.63054517]
[1733699247085,0.3295643,100200.0,100190.0,0.63054517]
[1733699250493,0.001,100200.0,100190.0,1.05762418]
[1733699253196,0.001,100200.0,100190.0,1.12037401]
[1733699253799,0.001,100200.0,100190.0,1.05762418]
[1733699254695,0.15432593,100220.0,100190.0,1.06596792]
[1733699254894,0.11488992,100220.0,100210.0,0.89197166]
[1733699255193,0.17936778,100230.0,100220.0,0.044867]
[1733699255496,0.1245721,100250.0,100240.0,0.044858]
[1733699255686,0.0311,100260.0,100240.0,0.405658]
[1733699255889,0.075951,100260.0,100250.0,0.10760383]
[1733699256097,0.075951,100260.0,100250.0,0.46840383]
[1733699256395,0.075951,100260.0,100250.0,0.405654]
[1733699256599,0.13882178,100260.0,100250.0,0.50549911]
[1733699256897,0.07707195,100260.0,100250.0,0.50549911]
[1733699257200,0.07707195,100260.0,100250.0,0.56824894]
[1733699258199,0.07607195,100260.0,100250.0,0.56824894]
[1733699258391,0.07707195,100260.0,100250.0,0.56824894]
[1733699258998,0.07707195,100260.0,100250.0,0.56924894]
[1733699259189,0.00112095,100260.0,100250.0,0.56924894]
[1733699266194,0.00112095,100260.0,100250.0,0.63199877]
[1733699266395,0.00112095,100260.0,100250.0,0.62094894]
[1733699266596,0.00112095,100260.0,100250.0,0.68369877]
[1733699266999,0.049842,100280.0,100270.0,0.044845]
[1733699267303,0.044842,100280.0,100270.0,0.52112045]
[1733699267695,0.044842,100280.0,100270.0,0.52539064]
[1733699268097,0.04493937,100280.0,100270.0,0.52539064]
[1733699268294,0.04693937,100280.0,100270.0,0.52539064]
[1733699270706,0.04493937,100280.0,100270.0,0.52539064]
[1733699270896,0.04493937,100280.0,100270.0,0.53539064]
[1733699273503,0.04493937,100280.0,100270.0,0.63086609]
[1733699273894,0.04593937,100280.0,100270.0,0.63086609]
[1733699274301,0.04493937,100280.0,100270.0,0.63086609]
[1733699274503,0.04593937,100280.0,100270.0,0.63086609]
[1733699275507,0.04593937,100280.0,100270.0,0.53539064]
[1733699276700,0.04593937,100280.0,100270.0,0.17459064]
[1733699277305,0.04593937,100280.0,100270.0,0.63086609]
[1733699277809,0.00109737,100280.0,100270.0,0.63086609]
[1733699278596,0.149833,100300.0,100270.0,0.63086609]
[1733699278597,0.105,100300.0,100290.0,0.044836]
[1733699278802,0.1,100300.0,100290.0,0.9873869]
[1733699279107,1e-06,100300.0,100290.0,1.0182869]
[1733699279412,1e-06,100300.0,100290.0,1.11799276]
[1733699279613,1e-06,100300.0,100290.0,1.11812178]
[1733699280106,1e-06,100300.0,100290.0,1.02364633]
[1733699280515,1e-06,100300.0,100290.0,1.05534633]
[1733699280704,1e-06,100300.0,100290.0,1.06234633]
[1733699281107,1e-06,100300.0,100290.0,1.06534633]
[1733699281307,1e-06,100300.0,100290.0,1.06034633]
[1733699281814,1e-06,100300.0,100290.0,1.05734633]
[1733699282017,1e-06,100300.0,100290.0,1.05834633]
[1733699284414,1e-06,100300.0,100290.0,0.95887088]
[1733699284717,1e-06,100300.0,100290.0,0.96883023]
[1733699284913,1e-06,100300.0,100290.0,1.06430568]
[1733699286120,1e-06,100300.0,100290.0,1.59768878]
[1733699286417,1e-06,100300.0,100290.0,1.60068878]
[1733699286917,1e-06,100300.0,100290.0,1.59768878]
[1733699288012,0.044832,100300.0,100290.0,1.59768878]
[1733699289817,0.044832,100300.0,100290.0,1.59868878]
[1733699290114,1e-06,100300.0,100290.0,1.59868878]
[1733699290616,1e-06,100300.0,100290.0,1.59768878]
[1733699291223,1e-06,100300.0,100290.0,1.47883865]
[1733699292408,1e-06,100300.0,100290.0,1.5743141]
[1733699292610,0.08213779,100320.0,100310.0,0.044827]
[1733699292812,0.07713779,100320.0,100310.0,0.435627]
[1733699293316,0.07713779,100320.0,100310.0,0.53531298]
[1733699299625,0.07713779,100320.0,100310.0,0.71304033]
[1733699305226,0.07713779,100320.0,100310.0,0.77564937]
[1733699305536,0.07713779,100320.0,100310.0,0.20772735]
[1733699305537,0.88315587,100320.0,100310.0,0.20772735]
[1733699307237,0.85338464,100320.0,100310.0,0.20772735]
[1733699308148,0.94883149,100320.0,100310.0,0.20772735]
[1733699308649,0.95283149,100320.0,100310.0,0.001]
[1733699308845,0.044827,100310.0,100300.0,0.236835]
[1733699309144,0.53237385,100310.0,100300.0,0.236835]
[1733699309642,0.84237385,100310.0,100300.0,0.236835]
[1733699310343,0.84637385,100310.0,100300.0,0.236835]
[1733699312049,0.87927385,100310.0,100300.0,0.236835]
[1733699313642,0.84637385,100310.0,100300.0,0.236835]
[1733699313841,0.54637385,100310.0,100300.0,0.236835]
[1733699314044,0.84637385,100310.0,100300.0,0.236835]
[1733699314550,0.85620275,100310.0,100300.0,0.236835]
[1733699316152,0.85620275,100310.0,100290.0,0.00012902]
[1733699316354,0.50107785,100300.0,100290.0,0.00012902]
[1733699316549,0.6376247,100300.0,100290.0,0.00012902]
[1733699316748,0.9376247,100300.0,100290.0,2e-08]
[1733699318865,0.9386247,100300.0,100290.0,2e-08]
[1733699319359,0.04484,100280.0,100270.0,0.015]
[1733699319551,0.044845,100270.0,100260.0,0.5353631]
[1733699319753,0.53229185,100270.0,100260.0,0.5353631]
[1733699319958,0.54229185,100270.0,100260.0,0.5353631]
[1733699320461,0.53229185,100270.0,100260.0,0.53549129]
[1733699320860,0.53229185,100270.0,100260.0,0.53351129]
[1733699321359,0.71074034,100270.0,100260.0,0.00012819]
[1733699321554,0.85936128,100270.0,100260.0,0.00012819]
[1733699322163,0.86236128,100270.0,100260.0,0.00112819]
[1733699322654,0.68391279,100270.0,100260.0,0.00012819]
[1733699322960,0.68591279,100270.0,100260.0,0.00012819]
[1733699323345,0.69591279,100270.0,100260.0,0.00012819]
[1733699323551,0.3172702,100270.0,100260.0,0.04497719]
[1733699323852,0.3531967,100270.0,100260.0,0.13186389]
[1733699324558,0.23439244,100270.0,100260.0,0.13186389]
[1733699329052,0.23439244,100270.0,100260.0,0.17671289]
[1733699329557,0.23441091,100270.0,100260.0,0.17671289]
[1733699329751,0.59521091,100270.0,100260.0,0.17671289]
[1733699329947,0.23441091,100270.0,100260.0,0.17671289]
[1733699330457,0.13896406,100270.0,100260.0,0.53751289]
[1733699331561,0.13380906,100270.0,100260.0,0.53751289]
[1733699332248,0.08896406,100270.0,100260.0,0.63395974]
[1733699332450,0.07984,100280.0,100270.0,0.044845]
[1733699332657,0.04484,100280.0,100270.0,0.405645]
[1733699333058,0.04484,100280.0,100270.0,0.5053807]
[1733699334164,0.04684,100280.0,100270.0,0.5053807]
[1733699334754,0.04684,100280.0,100270.0,0.5063807]
[1733699334951,0.04484,100280.0,100270.0,0.1455807]
[1733699335156,0.04484,100280.0,100270.0,0.5063807]
[1733699335657,0.04484,100280.0,100270.0,0.5372807]
[1733699337767,0.415037,100290.0,100280.0,0.04484]
[1733699337966,0.380037,100290.0,100280.0,0.43664]
[1733699338153,0.3352,100290.0,100280.0,0.43664]
[1733699338359,0.3352,100290.0,100280.0,0.5363558]
[1733699338867,0.3372,100290.0,100280.0,0.5363558]
[1733699339266,0.3402,100290.0,100280.0,0.5363558]
[1733699340167,0.005,100290.0,100280.0,0.63180265]
[1733699340372,0.005,100290.0,100280.0,0.5363558]
[1733699340968,0.005,100290.0,100280.0,0.63180265]
[1733699344177,0.003,100290.0,100280.0,0.63180265]
[1733699344375,0.3024252,100300.0,100280.0,0.63880265]
[1733699344575,0.2974252,100300.0,100290.0,0.3918]
[1733699344774,0.2674252,100300.0,100290.0,0.53208285]
[1733699345177,0.2674252,100300.0,100290.0,0.66239865]
[1733699347171,0.2674252,100300.0,100290.0,0.66539865]
[1733699348072,0.2674252,100300.0,100290.0,0.66839865]
[1733699348679,0.2674252,100300.0,100290.0,0.66739865]
[1733699349583,0.2674252,100300.0,100290.0,0.67742729]
[1733699351487,0.2674252,100300.0,100290.0,1.07296757]
[1733699351984,0.2674252,100300.0,100290.0,0.97752072]
[1733699352178,0.2674252,100300.0,100290.0,1.07296757]
[1733699353178,0.1642952,100300.0,100290.0,1.07296757]
[1733699353380,0.11880426,100300.0,100290.0,1.07296757]
[1733699354580,0.11880426,100300.0,100290.0,0.77296757]
[1733699355579,0.11880426,100300.0,100290.0,0.67752072]
[1733699355886,0.11880426,100300.0,100290.0,0.77296757]
[1733699356985,0.11880426,100300.0,100290.0,0.67752072]
[1733699357189,0.11880426,100300.0,100290.0,0.67952072]
[1733699358487,0.11880426,100300.0,100290.0,0.52247387]
[1733699358682,0.11880426,100300.0,100290.0,0.52447387]
[1733699358683,0.18430426,100300.0,100290.0,0.52447387]
[1733699358883,0.18430426,100300.0,100290.0,0.52547387]
[1733699359192,0.18430426,100300.0,100290.0,0.62092072]
[1733699359691,0.0655,100300.0,100290.0,0.62092072]
[1733699359879,0.0655,100300.0,100290.0,0.61192072]
[1733699360487,0.0665,100300.0,100290.0,0.51547387]
[1733699361487,0.0665,100300.0,100290.0,0.61092072]
[1733699362088,0.0665,100300.0,100290.0,0.61492072]
[1733699362495,0.0665,100300.0,100290.0,0.51547387]
[1733699363094,0.0655,100300.0,100290.0,0.51647387]
[1733699363694,0.0655,100300.0,100290.0,0.75763247]
[1733699363997,0.0655,100300.0,100290.0,0.75663247]
[1733699365197,0.0655,100300.0,100290.0,0.75263247]
[1733699365705,0.0655,100300.0,100290.0,0.75363247]
[1733699366196,0.0655,100300.0,100290.0,0.84907932]
[1733699366792,0.0655,100300.0,100290.0,0.84807932]
[1733699368294,0.0655,100300.0,100290.0,0.85207932]
[1733699368496,0.0655,100300.0,100290.0,0.95225204]
[1733699368803,0.0655,100300.0,100290.0,0.94825204]
[1733699369402,0.00011579,100320.0,100300.0,0.044831]
[1733699369699,0.22383154,100350.0,100340.0,0.044813]
[1733699369901,0.22383154,100350.0,100340.0,0.405613]
[1733699370095,0.27227898,100350.0,100340.0,0.044813]
[1733699370300,0.04481,100350.0,100340.0,0.405613]
[1733699370497,0.22390189,100350.0,100340.0,0.50526918]
[1733699370698,0.04488035,100350.0,100340.0,0.50526918]
[1733699371502,0.04488035,100350.0,100340.0,0.50626918]
[1733699371503,0.04988035,100350.0,100340.0,0.50626918]
[1733699372405,0.05188035,100350.0,100340.0,0.50626918]
[1733699372809,0.23090189,100350.0,100340.0,0.50626918]
[1733699373104,0.23190189,100350.0,100340.0,0.50626918]
[1733699373301,0.23190189,100350.0,100340.0,0.3618]
[1733699373901,0.23190189,100350.0,100340.0,0.001]
[1733699374701,0.22890189,100350.0,100340.0,0.001]
[1733699374900,0.23090189,100350.0,100340.0,0.011]
[1733699375607,0.23190189,100350.0,100340.0,0.011]
[1733699376614,0.05288035,100350.0,100340.0,0.011]
[1733699379110,0.23163942,100350.0,100340.0,0.011]
[1733699379710,0.63708627,100350.0,100330.0,0.3608]
[1733699380015,0.436113,100340.0,100330.0,0.01]
[1733699380313,0.446113,100340.0,100330.0,0.01]
[1733699380714,0.085313,100340.0,100330.0,0.01]
[1733699381211,0.089313,100340.0,100330.0,0.01]
[1733699382205,0.54555985,100340.0,100330.0,0.01]
[1733699382909,0.54755985,100340.0,100330.0,0.01]
[1733699383103,0.57915985,100340.0,100330.0,0.01]
[1733699383705,0.483713,100340.0,100330.0,0.01]
[1733699384314,0.81144977,100340.0,100330.0,0.01]
[1733699384515,0.80744977,100340.0,100330.0,0.015]
[1733699384708,0.80744977,100340.0,100330.0,0.025]
[1733699384909,0.80544977,100340.0,100330.0,0.025]
[1733699385107,0.80944977,100340.0,100330.0,0.025]
[1733699385410,0.90489662,100340.0,100330.0,0.025]
[1733699385613,0.75791892,100340.0,100330.0,0.026]
[1733699385810,0.76091892,100340.0,100330.0,0.026]
[1733699386411,1.06091892,100340.0,100310.0,0.415625]
[1733699386610,0.044822,100320.0,100310.0,0.405625]
[1733699386911,0.044822,100320.0,100310.0,0.50529111]
[1733699387213,0.078022,100320.0,100310.0,0.50529111]
[1733699387615,0.109222,100320.0,100310.0,0.50529111]
[1733699388704,0.109222,100320.0,100310.0,0.46046611]
[1733699388910,0.25820836,100320.0,100310.0,0.46046611]
[1733699389107,0.25820836,100320.0,100310.0,0.46146611]
[1733699389314,0.26220836,100320.0,100310.0,0.46146611]
[1733699389707,0.29370836,100320.0,100310.0,0.46046611]
[1733699389914,0.29570836,100320.0,100310.0,0.46046611]
[1733699391906,0.30571719,100320.0,100310.0,0.46046611]
[1733699392420,0.40116404,100320.0,100310.0,0.09966611]
[1733699392620,0.57992311,100320.0,100310.0,0.09966611]
[1733699393119,0.48447626,100320.0,100310.0,0.09966611]
[1733699396116,0.49447626,100320.0,100310.0,0.09966611]
[1733699396318,0.48447626,100320.0,100310.0,0.09966611]
[1733699396518,0.57992311,100320.0,100310.0,0.09966611]
[1733699397316,1.05616996,100320.0,100300.0,0.3608]
[1733699397516,0.044831,100300.0,100290.0,0.36089343]
[1733699397825,0.044831,100300.0,100290.0,0.09977941]
[1733699398013,0.109131,100300.0,100290.0,0.09977941]
[1733699398914,0.109131,100300.0,100290.0,0.00409343]
[1733699400419,0.109131,100300.0,100290.0,0.00509343]
[1733699402123,0.20457785,100300.0,100290.0,0.00509343]
[1733699403019,0.109131,100300.0,100290.0,0.14963529]
[1733699403722,0.109131,100300.0,100290.0,0.51043529]
[1733699404323,0.109131,100300.0,100290.0,0.14963529]
[1733699404526,0.077931,100300.0,100290.0,0.51043529]
[1733699404824,0.077931,100300.0,100290.0,0.54323529]
[1733699406223,0.044831,100300.0,100290.0,0.54323529]
[1733699411827,0.044831,100300.0,100290.0,0.18243529]
[1733699412018,0.044831,100300.0,100290.0,0.54323529]
[1733699413224,0.044831,100300.0,100290.0,0.60587167]
[1733699416433,0.19381736,100300.0,100290.0,0.60587167]
[1733699420534,0.19381736,100300.0,100290.0,0.66850805]
[1733699420535,0.14898636,100300.0,100290.0,0.66850805]
[1733699420830,0.035,100310.0,100300.0,0.044831]
[1733699421038,0.29378441,100320.0,100310.0,0.044827]
[1733699421236,0.21396141,100320.0,100310.0,0.46826338]
[1733699421533,0.40781646,100330.0,100320.0,0.044822]
[1733699421733,0.37281646,100330.0,100320.0,0.46825838]
[1733699422445,0.37281646,100330.0,100320.0,0.56794436]
[1733699422931,0.37281646,100330.0,100320.0,0.59924436]
[1733699422932,0.32799646,100330.0,100320.0,0.59924436]
[1733699423329,0.32799646,100330.0,100320.0,0.63198296]
[1733699423542,0.32799646,100330.0,100320.0,0.72735794]
[1733699423933,0.32799646,100330.0,100320.0,0.63198296]
[1733699424735,0.32799646,100330.0,100320.0,0.63498296]
[1733699425330,0.32799646,100330.0,100320.0,0.63598296]
[1733699426135,0.32799646,100330.0,100320.0,0.63798296]
[1733699426332,0.32799646,100330.0,100320.0,0.64298296]
[1733699426532,0.32799646,100330.0,100320.0,1.03835794]
[1733699426732,0.32799646,100330.0,100320.0,1.04842672]
[1733699427043,0.035,100340.0,100330.0,0.044818]
[1733699427230,0.07988135,100350.0,100340.0,0.044813]
[1733699427433,0.04488135,100350.0,100340.0,0.405613]
[1733699427743,0.04488135,100350.0,100340.0,0.50527911]
[1733699429145,0.04588135,100350.0,100340.0,0.50527911]
[1733699431944,0.26010847,100350.0,100340.0,0.09966611]
[1733699432148,0.75669272,100350.0,100320.0,0.440622]
[1733699432340,0.044818,100330.0,100320.0,0.405622]
[1733699432536,0.16368616,100330.0,100320.0,0.50527818]
[1733699432738,0.044818,100330.0,100320.0,0.50527818]
[1733699432940,0.16368616,100330.0,100320.0,0.50527818]
[1733699433149,0.16368616,100330.0,100320.0,0.60065316]
[1733699433454,0.16368616,100330.0,100320.0,0.60865316]
[1733699434353,0.16368616,100330.0,100320.0,0.61165316]
[1733699434744,0.044818,100330.0,100320.0,0.61165316]
[1733699436443,0.044818,100330.0,100320.0,0.64295316]
[1733699436747,0.18569551,100340.0,100330.0,0.044818]
[1733699436954,0.0318,100340.0,100330.0,0.50099298]
[1733699437451,0.0318,100340.0,100330.0,0.60066903]
[1733699437654,0.2890154,100350.0,100330.0,0.60066903]
[1733699437858,0.2840154,100350.0,100340.0,0.405613]
[1733699438152,0.2540154,100350.0,100340.0,0.405613]
[1733699438554,0.2540154,100350.0,100340.0,0.50527911]
[1733699439041,0.07528035,100350.0,100340.0,0.50527911]
[1733699440647,0.07628035,100350.0,100340.0,0.50527911]
[1733699442946,0.19519949,100350.0,100340.0,0.50527911]
[1733699443140,0.19519949,100350.0,100340.0,0.46046611]
[1733699443353,0.19519949,100350.0,100340.0,0.09966611]
[1733699443755,0.3444609,100350.0,100340.0,0.09966611]
[1733699444454,0.22554176,100350.0,100340.0,0.09966611]
[1733699447551,0.24554176,100350.0,100340.0,0.09966611]
[1733699447756,0.044818,100330.0,100320.0,0.440621]
[1733699447951,0.044818,100330.0,100320.0,0.405621]
[1733699448255,0.405618,100330.0,100320.0,0.09965618]
[1733699448458,0.077618,100330.0,100320.0,0.09965618]
[1733699448654,0.438418,100330.0,100320.0,0.09965618]
[1733699448957,0.077618,100330.0,100320.0,0.09965618]
[1733699449356,0.077618,100330.0,100320.0,0.10765618]
[1733699449559,0.438418,100330.0,100320.0,0.10765618]
[1733699449764,0.077618,100330.0,100320.0,0.10765618]
[1733699449950,0.077618,100330.0,100320.0,0.10265618]
[1733699450555,0.077618,100330.0,100320.0,0.60065316]
[1733699450959,0.077618,100330.0,100320.0,0.50527818]
[1733699454066,0.077618,100330.0,100320.0,0.14447818]
[1733699454253,0.077618,100330.0,100320.0,0.50527818]
[1733699455357,0.077618,100330.0,100320.0,0.46045618]
[1733699455658,0.044822,100320.0,100310.0,0.405626]
[1733699455957,0.044822,100320.0,100310.0,0.50530205]
[1733699455958,0.076822,100320.0,100310.0,0.50530205]
[1733699456259,0.076822,100320.0,100310.0,0.60067703]
[1733699456460,0.076822,100320.0,100310.0,0.50530205]
[1733699457060,0.076822,100320.0,100310.0,0.50930205]
[1733699457358,0.076822,100320.0,100310.0,0.51030205]
[1733699457957,0.079819,100330.0,100320.0,0.044822]
[1733699458260,0.044819,100330.0,100320.0,0.405622]
[1733699458456,0.044819,100330.0,100320.0,0.436022]
[1733699458652,0.044819,100330.0,100320.0,0.63108296]
[1733699459655,0.044819,100330.0,100320.0,0.63508296]
[1733699460251,0.079815,100340.0,100330.0,0.044818]
[1733699460456,0.044815,100340.0,100330.0,0.53239298]
[1733699460755,0.03507035,100350.0,100330.0,0.53239298]
[1733699460756,0.07988135,100350.0,100340.0,0.044813]
[1733699460951,0.04488135,100350.0,100340.0,0.405613]
[1733699461152,0.04488135,100350.0,100340.0,0.435613]
[1733699461457,0.04488135,100350.0,100340.0,0.53527911]
[1733699462252,0.05610115,100350.0,100340.0,0.53527911]
[1733699462450,0.00107035,100350.0,100340.0,0.6307487]
[1733699462651,0.00107035,100350.0,100340.0,0.50537372]
[1733699462854,0.04587935,100350.0,100340.0,0.6007487]
[1733699463556,0.04587935,100350.0,100340.0,0.50537372]
[1733699463957,0.19491318,100350.0,100340.0,0.50537372]
[1733699464753,0.19491318,100350.0,100340.0,0.6007487]
[1733699466955,0.19491318,100350.0,100340.0,0.50537372]
[1733699469360,0.29028816,100350.0,100340.0,0.46056072]
[1733699469555,0.32009492,100350.0,100340.0,0.09976072]
[1733699469756,0.35259492,100350.0,100340.0,0.09976072]
[1733699469958,0.72339492,100350.0,100340.0,9.461e-05]
[1733699470157,0.54455433,100350.0,100340.0,9.461e-05]
[1733699470761,0.93992931,100350.0,100340.0,6.1e-07]
[1733699470958,0.044818,100330.0,100320.0,0.44916894]
[1733699471163,0.67982175,100330.0,100320.0,0.41416894]
[1733699471362,0.71312175,100330.0,100320.0,0.41416894]
[1733699471565,0.61774677,100330.0,100320.0,0.41416894]
[1733699472065,0.61774677,100330.0,100320.0,0.41425833]
[1733699472365,0.61774677,100330.0,100320.0,0.37278322]
[1733699472564,0.61774677,100330.0,100320.0,0.27740824]
[1733699472761,0.61774677,100330.0,100320.0,0.09976544]
[1733699473655,0.25694677,100330.0,100320.0,0.50538744]
[1733699474060,0.25694677,100330.0,100320.0,0.60076242]
[1733699474461,0.22364677,100330.0,100320.0,0.60076242]
[1733699476470,0.22364677,100330.0,100320.0,0.60176242]
[1733699477165,0.22364677,100330.0,100320.0,0.60076242]
[1733699478169,0.16401575,100330.0,100320.0,0.60076242]
[1733699478376,0.31301294,100330.0,100320.0,0.60076242]
[1733699481477,0.19381519,100330.0,100320.0,0.09976544]
[1733699481668,0.56329298,100330.0,100320.0,0.09976544]
[1733699481875,0.57329298,100330.0,100320.0,8.939e-05]
[1733699484772,0.7818789,100330.0,100320.0,8.939e-05]
[1733699486285,0.57329298,100330.0,100320.0,8.939e-05]
[1733699486870,0.60429298,100330.0,100320.0,8.939e-05]
[1733699488279,0.90429298,100330.0,100320.0,8.939e-05]
[1733699488674,0.91428357,100330.0,100320.0,3.9e-07]
[1733699488876,1.12286949,100330.0,100320.0,3.9e-07]
[1733699489078,1.6962229,100330.0,100320.0,3.9e-07]
[1733699489279,1.69605046,100330.0,100320.0,3.9e-07]
[1733699489987,1.45773705,100330.0,100320.0,3.9e-07]
[1733699492386,1.24932357,100330.0,100320.0,3.9e-07]
[1733699492587,0.94932357,100330.0,100320.0,3.9e-07]
[1733699492785,1.15773705,100330.0,100320.0,3.9e-07]
[1733699492985,0.94932357,100330.0,100320.0,3.9e-07]
[1733699493296,1.24932357,100330.0,100320.0,3.9e-07]
[1733699494386,1.26898771,100330.0,100320.0,3.9e-07]
[1733699496286,1.47740119,100330.0,100320.0,3.9e-07]
[1733699497092,1.17740119,100330.0,100320.0,3.9e-07]
[1733699497484,1.47740119,100330.0,100320.0,3.9e-07]